fUSD/lending_fUSD_20240719
["ID","MTS","AMOUNT","RATE_DAILY","PERIOD"]
[332626397,1721374260825,-201.0,0.0002769,30]
[332626398,1721374260836,-200.0,0.0002769,2]
[332626399,1721374260847,-482.91,0.00027714,2]
[332626400,1721374260857,-445.97458436,0.00027755,2]
[332626401,1721374260866,-235.0,0.0002778,2]
[332626402,1721374260876,-208.0,0.0002778,30]
[332626403,1721374260886,-371.945488,0.000278,2]
[332626404,1721374260895,-536.285699,0.000278,2]
[332626405,1721374260905,-825.399125,0.000278,2]
[332626406,1721374260915,-620.58216,0.000278,2]
[332626407,1721374260925,-472.40063,0.000278,2]
[332626408,1721374260934,-448.743898,0.000278,2]
[332626409,1721374260943,-173.464968,0.000278,2]
[332626410,1721374260953,-157.063351,0.000278,2]
[332626411,1721374260963,-164.812469,0.000278,2]
[332626412,1721374260972,-178.535545,0.000278,2]
[332626413,1721374260982,-196.833596,0.000278,2]
[332626414,1721374260991,-186.976624,0.000278,2]
[332626415,1721374261002,-150.29,0.00027819,2]
[332626416,1721374261011,-214.0,0.0002783,30]
[332626417,1721374261021,-321.21245581,0.00028057,2]
[332626418,1721374261031,-150.28115843,0.00028073,2]
[332626419,1721374261041,-787.68,0.00028139,2]
[332626420,1721374261050,-4000.0,0.00028218,2]
[332626421,1721374261060,-4300.0,0.00028218,2]
[332626422,1721374261070,-500.0,0.00028218,2]
[332626423,1721374261080,-157.65036385,0.00028233,2]
[332626424,1721374261091,-171.62612625,0.00028281,2]
[332626425,1721374261101,-171.62612625,0.00028306,2]
[332626426,1721374261111,-152.64990468,0.00028353,2]
[332626427,1721374261125,-155.30425096,0.00028361,2]
[332626428,1721374261134,-283.50715634,0.00028387,2]
[332626429,1721374261144,-201.0,0.000284,30]
[332626430,1721374261155,-200.0,0.000284,2]
[332626431,1721374261168,-152.38095237,0.00028449,2]
[332626432,1721374261178,-150.28115843,0.00028478,2]
[332626433,1721374261187,-500.0,0.00028493,2]
[332626434,1721374261200,-20386.52,0.000285,14]
[332626435,1721374261209,-4094.02,0.000285,2]
[332626436,1721374261219,-171.62612625,0.00028566,2]
[332626437,1721374261228,-442.98532284,0.00028607,2]
[332626438,1721374261238,-235.0,0.0002863,2]
[332626439,1721374261248,-208.0,0.0002863,30]
[332626440,1721374261258,-150.29,0.00028662,2]
[332626441,1721374261267,-214.0,0.0002867,30]
[332626442,1721374261277,-151.0,0.00028684,3]
[332626443,1721374261287,-10000.0,0.000287,6]
[332626444,1721374261297,-1000.0,0.00028766,2]
[332626445,1721374261307,-800.0,0.00028766,2]
[332626446,1721374261316,-150.97699058,0.00028777,2]
[332626447,1721374261326,-171.62612625,0.00028785,2]
[332626448,1721374261337,-171.62612625,0.00028845,2]
[332626449,1721374261347,-150.28115843,0.00028884,2]
[332626450,1721374261357,-800.0,0.00028889,2]
[332626451,1721374261366,-11759.03,0.000289,2]
[332626452,1721374261376,-171.62612625,0.00028929,2]
[332626453,1721374261386,-152.64990468,0.00028933,2]
[332626454,1721374261396,-283.50715634,0.00028999,2]
[332626455,1721374261407,-513.0,0.00029,7]
[332626456,1721374261416,-150.05182186,0.00029,2]
[332626457,1721374261426,-500.0,0.00029,2]
[332626458,1721374261436,-442.98532284,0.00029005,2]
[332626459,1721374261445,-194.52828758,0.00029025,2]
[332626460,1721374261455,-152.20150663,0.0002903,2]
[332626461,1721374261464,-151.96775161,0.00029048,2]
[332626462,1721374261474,-201.0,0.000291,30]
[332626463,1721374261484,-200.0,0.000291,2]
[332626464,1721374261494,-194.52828758,0.00029147,2]
[332626465,1721374261504,-1000.0,0.00029148,2]
[332626466,1721374261513,-165.82,0.00029224,2]
[332626467,1721374261523,-150.28115843,0.00029289,2]
[332626468,1721374261533,-190.29215174,0.000293,2]
[332626469,1721374261543,-4300.0,0.00029314,2]
[332626470,1721374261553,-4000.0,0.00029314,2]
[332626471,1721374261563,-500.0,0.00029314,2]
[332626472,1721374261572,-500.0,0.00029315,2]
[332626473,1721374261582,-152.38095237,0.00029358,2]
[332626474,1721374261595,-156.41535083,0.00029382,2]
[332626476,1721374261605,-167.73,0.0002946,120]
[332626477,1721374261615,-235.0,0.0002948,2]
[332626478,1721374261629,-208.0,0.0002948,30]
[332626479,1721374261639,-20386.52,0.000295,14]
[332626480,1721374261649,-150.29,0.00029505,2]
[332626481,1721374261659,-214.0,0.0002951,30]
[332626482,1721374261668,-156.41535083,0.00029547,2]
[332626483,1721374261677,-152.64990468,0.00029587,2]
[332626484,1721374261686,-152.02793623,0.00029598,2]
[332626485,1721374261696,-283.50715634,0.00029612,2]
[332626486,1721374261705,-155.37111201,0.00029672,2]
[332626487,1721374261716,-150.28115843,0.00029695,2]
[332626488,1721374261725,-4094.02,0.000297,2]
[332626489,1721374261735,-150.0,0.0002972,4]
[332626490,1721374261744,-160.41836801,0.00029721,2]
[332626491,1721374261754,-152.28968641,0.00029769,2]
[332626492,1721374261763,-283.50715634,0.00029791,2]
[332626493,1721374261773,-2612.81200525,0.000298,2]
[332626494,1721374261783,-11759.03,0.000298,2]
[332626495,1721374261792,-517.0,0.000298,2]
[332626496,1721374261802,-166.66666666,0.000298,2]
[332626497,1721374261811,-151.0,0.00029808,4]
[332626498,1721374261821,-201.0,0.0002981,30]
[332626499,1721374261830,-200.0,0.0002981,2]
[332626500,1721374261841,-113412.19887845,0.00029811,7]
[332626501,1721374261851,-91866.55376925,0.00029811,7]
[332626502,1721374261860,-268.65146992,0.00029811,7]
[332626503,1721374261870,-150.0,0.00029811,7]
[332626504,1721374261880,-150.56996826,0.00029811,7]
[332626505,1721374261889,-150.0,0.00029811,7]
[332626506,1721374261899,-150.0,0.00029811,7]
[332626508,1721374261909,-271.50944167,0.00029811,7]
[332626509,1721374261919,-150.0,0.00029811,7]
[332626510,1721374261928,-150.0,0.00029811,7]
[332626511,1721374261938,-150.0,0.00029811,7]
[332626512,1721374261948,-150.0,0.00029811,7]
[332626513,1721374261957,-150.0,0.00029811,7]
[332626514,1721374261967,-150.0,0.00029811,7]
[332626515,1721374261976,-161.40247217,0.00029811,7]
[332626516,1721374261986,-150.0,0.00029811,7]
[332626517,1721374261995,-150.0,0.00029811,7]
[332626518,1721374262005,-151.96775161,0.00029814,2]
[332626519,1721374262014,-1000.0,0.00029862,2]
[332626520,1721374262024,-800.0,0.00029862,2]
[332626521,1721374262034,-152.28968641,0.00029866,2]
[332626522,1721374262044,-144699.03648061,0.000299,10]
[332626523,1721374262053,-442.98532284,0.00029904,2]
[332626524,1721374262064,-442.98532284,0.00029973,2]
[332626525,1721374262073,-268.65146992,0.00029976,7]
[332626526,1721374262085,-224.12602188,0.0002999,2]
[332626527,1721374262095,-164.11705754,0.0003,30]
[332626528,1721374262105,-11027.2177247,0.0003,3]
[332626529,1721374262120,-1524.93482502,0.0003,2]
[332626530,1721374262131,-3909.65766542,0.0003,2]
[332626531,1721374262141,-1715.49302019,0.0003,2]
[332626532,1721374262150,-500.0,0.0003,14]
[332626533,1721374262160,-500.0,0.0003,2]
[332626534,1721374262169,-2000.0,0.0003,60]
[332626535,1721374262179,-550.0,0.0003,7]
[332626536,1721374262188,-160.0,0.0003,2]
[332626537,1721374262197,-200.14768438,0.0003,10]
[332626538,1721374262208,-958.20446864,0.0003,50]
[332626539,1721374262218,-2000.0,0.0003,2]
[332626540,1721374262227,-2000.8193,0.0003,2]
[332626541,1721374262237,-451.19923566,0.0003,6]
[332626542,1721374262247,-2000.0,0.0003,2]
[332626543,1721374262256,-2000.0,0.0003,2]
[332626544,1721374262266,-19934.06573788,0.0003,2]
[332626545,1721374262275,-1000.0,0.0003,14]
[332626546,1721374262286,-233.05150367,0.0003,4]
[332626547,1721374262296,-1769.792,0.0003,2]
[332626548,1721374262306,-2000.0,0.0003,2]
[332626549,1721374262316,-3000.0,0.0003,30]
[332626550,1721374262325,-3000.0,0.0003,30]
[332626551,1721374262336,-2000.0,0.0003,2]
[332626552,1721374262345,-2000.0,0.0003,2]
[332626553,1721374262355,-2877.55647249,0.0003,2]
[332626554,1721374262364,-4828.0,0.0003,10]
[332626555,1721374262374,-2000.0,0.0003,2]
[332626556,1721374262384,-2000.0,0.0003,2]
[332626557,1721374262394,-691.89400973,0.0003,4]
[332626558,1721374262403,-151.0,0.0003,7]
[332626559,1721374262412,-360.39808229,0.0003,2]
[332626560,1721374262422,-310.109553,0.0003,7]
[332626561,1721374262431,-310.109553,0.0003,7]
[332626562,1721374262440,-151.0,0.0003,7]
[332626563,1721374262450,-10000.0,0.0003,5]
[332626564,1721374262459,-151.0,0.0003,7]
[332626565,1721374262469,-2005.1058,0.0003,2]
[332626566,1721374262479,-3193.6618795,0.0003,2]
[332626567,1721374262489,-151.0,0.0003,7]
[332626568,1721374262500,-168.011727,0.0003,7]
[332626569,1721374262511,-277.680712,0.0003,7]
[332626570,1721374262521,-314.43090486,0.0003,2]
[332626571,1721374262531,-150.0,0.0003,2]
[332626572,1721374262540,-151.0,0.0003,7]
[332626573,1721374262549,-260.573896,0.0003,7]
[332626574,1721374262559,-260.573896,0.0003,7]
[332626575,1721374262570,-1581.84617624,0.0003,14]
[332626576,1721374262579,-462.504134,0.0003,10]
[332626577,1721374262590,-151.0,0.0003,7]
[332626578,1721374262599,-12134.77,0.0003,30]
[332626579,1721374262608,-257.738003,0.0003,7]
[332626580,1721374262617,-151.0,0.0003,7]
[332626581,1721374262626,-219.0,0.0003,2]
[332626582,1721374262637,-334.156083,0.0003,7]
[332626583,1721374262647,-438.217861,0.0003,7]
[332626584,1721374262660,-334.156083,0.0003,7]
[332626585,1721374262671,-25000.0,0.00030006,2]
[332626586,1721374262680,-5000.0,0.00030007,2]
[332626587,1721374262691,-150.0,0.00030013,7]
[332626588,1721374262702,-150.0,0.00030026,7]
[332626589,1721374262713,-5000.0,0.00030027,2]
[332626590,1721374262724,-442.98532284,0.00030029,7]
[332626591,1721374262735,-194.52828758,0.00030044,7]
[332626592,1721374262745,-3456.93,0.0003006,2]
[332626593,1721374262754,-171.62612625,0.00030062,7]
[332626594,1721374262764,-151.96775161,0.00030071,7]
[332626595,1721374262774,-5000.0,0.0003008,2]
[332626596,1721374262784,-5000.0,0.00030081,2]
[332626597,1721374262793,-150.0,0.00030083,7]
[332626598,1721374262805,-283.50715634,0.00030091,7]
[332626599,1721374262816,-5000.0,0.00030092,2]
[332626600,1721374262828,-4710.64,0.00030095,2]
[332626601,1721374262839,-6270.78487083,0.000301,30]
[332626602,1721374262848,-384.5159451,0.000301,2]
[332626603,1721374262859,-6672.94441845,0.000301,30]
[332626604,1721374262868,-3614.7044726,0.000301,2]
[332626605,1721374262878,-1978.0,0.000301,2]
[332626606,1721374262887,-250.31864855,0.000301,2]
[332626607,1721374262896,-493.47080001,0.000301,2]
[332626608,1721374262906,-1594.28593743,0.000301,2]
[332626609,1721374262915,-150.28115843,0.000301,2]
[332626610,1721374262925,-507.78250882,0.00030136,2]
[332626611,1721374262934,-268.65146992,0.00030141,7]
[332626612,1721374262943,-5000.0,0.00030149,2]
[332626613,1721374262953,-25000.0,0.00030157,2]
[332626614,1721374262962,-5000.0,0.00030163,2]
[332626615,1721374262973,-171.62612625,0.00030183,7]
[332626616,1721374262982,-5000.0,0.00030189,2]
[332626617,1721374262991,-5000.0,0.00030199,2]
[332626618,1721374263000,-5000.0,0.00030209,2]
[332626619,1721374263010,-150.0,0.0003021,7]
[332626620,1721374263019,-150.0,0.00030215,7]
[332626621,1721374263029,-2521.77,0.00030219,2]
[332626622,1721374263039,-5000.0,0.0003023,2]
[332626623,1721374263049,-10000.0,0.00030233,2]
[332626624,1721374263058,-150.0,0.00030241,7]
[332626625,1721374263068,-152.64990468,0.00030243,7]
[332626626,1721374263077,-5000.0,0.00030257,2]
[332626627,1721374263089,-151.96775161,0.00030279,7]
[332626628,1721374263098,-5000.0,0.00030283,2]
[332626629,1721374263108,-8736.01,0.00030289,2]
[332626630,1721374263124,-20386.52,0.000303,14]
[332626631,1721374263133,-268.65146992,0.00030306,7]
[332626632,1721374263143,-151.96775161,0.00030309,7]
[332626633,1721374263153,-25000.0,0.00030318,2]
[332626634,1721374263163,-5000.0,0.00030325,2]
[332626635,1721374263172,-2517.58,0.00030327,2]
[332626636,1721374263181,-235.0,0.0003033,2]
[332626637,1721374263191,-208.0,0.0003033,30]
[332626638,1721374263203,-150.29,0.00030348,2]
[332626639,1721374263212,-150.0,0.00030356,7]
[332626640,1721374263222,-214.0,0.0003036,30]
[332626641,1721374263231,-2505.29,0.00030368,2]
[332626642,1721374263241,-2501.3,0.00030369,2]
[332626643,1721374263251,-5000.0,0.00030388,2]
[332626644,1721374263260,-151.24439154,0.00030397,7]
[332626645,1721374263270,-787.68,0.00030403,2]
[332626646,1721374263280,-4300.0,0.0003041,10]
[332626647,1721374263289,-4000.0,0.0003041,10]
[332626648,1721374263299,-500.0,0.0003041,10]
[332626649,1721374263309,-5000.0,0.00030414,2]
[332626650,1721374263318,-150.0,0.00030416,7]
[332626651,1721374263327,-5000.0,0.00030423,2]
[332626652,1721374263337,-2502.66,0.00030438,2]
[332626653,1721374263347,-194.52828758,0.0003045,7]
[332626654,1721374263357,-150.0,0.00030456,7]
[332626655,1721374263367,-268.65146992,0.00030471,7]
[332626656,1721374263376,-5000.0,0.0003048,2]
[332626657,1721374263386,-2502.66,0.00030485,2]
[332626658,1721374263395,-171.62612625,0.00030495,7]
[332626659,1721374263405,-157.071907,0.00030498,116]
[332626660,1721374263415,-157.071907,0.00030498,115]
[332626661,1721374263424,-157.071907,0.00030498,114]
[332626662,1721374263434,-157.071907,0.00030498,113]
[332626663,1721374263444,-157.071907,0.00030498,112]
[332626664,1721374263454,-157.071907,0.00030498,111]
[332626665,1721374263464,-157.071907,0.00030498,110]
[332626666,1721374263474,-157.071907,0.00030498,109]
[332626667,1721374263483,-150.28115843,0.00030506,2]
[332626668,1721374263493,-2501.46,0.00030517,2]
[332626669,1721374263503,-166.66666666,0.00030539,7]
[332626670,1721374263513,-5000.0,0.00030539,2]
[332626671,1721374263523,-152.02793623,0.00030563,7]
[332626672,1721374263532,-25000.0,0.00030579,2]
[332626673,1721374263541,-2517.58,0.00030597,2]
[332626674,1721374263551,-4094.02,0.000306,2]
[332626675,1721374263560,-5000.0,0.00030604,2]
[332626676,1721374263570,-150.0,0.00030608,7]
[332626677,1721374263580,-5000.0,0.00030617,2]
[332626678,1721374263590,-150.0,0.00030618,7]
[332626679,1721374263600,-166.66666668,0.0003062,7]
[332626680,1721374263609,-25000.0,0.00030628,2]
[332626681,1721374263824,-150.0,0.00030628,7]
[332626682,1721374263834,-268.65146992,0.00030637,7]
[332626683,1721374263847,-2521.77,0.00030643,2]
[332626684,1721374263857,-5000.0,0.00030649,2]
[332626685,1721374263867,-5000.0,0.00030665,2]
[332626686,1721374263877,-150.0,0.00030671,7]
[332626687,1721374263887,-152.02793623,0.0003068,7]
[332626688,1721374263897,-25000.0,0.00030692,2]
[332626689,1721374263906,-11759.03,0.000307,2]
[332626690,1721374263916,-150.0,0.00030719,7]
[332626691,1721374263926,-194.451237,0.00030736,2]
[332626692,1721374263935,-5000.0,0.00030736,2]
[332626693,1721374263945,-5000.0,0.00030741,2]
[332626694,1721374263954,-22476.77,0.0003076,2]
[332626695,1721374263964,-152.64990468,0.00030781,7]
[332626696,1721374263974,-5000.0,0.00030793,2]
[332626697,1721374263984,-5000.0,0.00030795,2]
[332626698,1721374263994,-5000.0,0.00030796,2]
[332626699,1721374264004,-268.65146992,0.00030802,7]
[332626700,1721374264014,-5000.0,0.00030819,2]
[332626701,1721374264023,-150.0,0.0003082,7]
[332626702,1721374264035,-10000.0,0.00030842,2]
[332626703,1721374264045,-2501.3,0.00030847,2]
[332626704,1721374264056,-150.0,0.00030886,7]
[332626705,1721374264065,-5000.0,0.00030894,2]
[332626706,1721374264075,-25000.0,0.00030895,2]
[332626707,1721374264084,-4864.74,0.00030898,2]
[332626708,1721374264096,-5000.0,0.00030899,2]
[332626709,1721374264105,-150.0,0.00030901,7]
[332626710,1721374264118,-5000.0,0.00030904,2]
[332626711,1721374264128,-150.28115843,0.00030911,2]
[332626712,1721374264138,-2505.29,0.00030913,2]
[332626713,1721374264147,-5000.0,0.00030919,2]
[332626714,1721374264157,-2501.46,0.00030923,2]
[332626715,1721374264166,-1000.0,0.00030958,10]
[332626716,1721374264176,-800.0,0.00030958,10]
[332626717,1721374264185,-5000.0,0.00030959,2]
[332626718,1721374264196,-5000.0,0.00030962,2]
[332626719,1721374264205,-194.52828758,0.00030964,7]
[332626720,1721374264214,-268.65146992,0.00030967,7]
[332626721,1721374264224,-5000.0,0.00030967,2]
[332626722,1721374264234,-156.41535083,0.00030973,7]
[332626723,1721374264243,-3725.32,0.00030976,2]
[332626724,1721374264253,-634.12883294,0.00031,2]
[332626725,1721374264263,-10000.0,0.00031,6]
[332626726,1721374264273,-1646.62116936,0.00031,2]
[332626727,1721374264283,-550.0,0.00031,2]
[332626728,1721374264293,-155.37111201,0.00031003,7]
[332626729,1721374264303,-150.0,0.00031007,7]
[332626730,1721374264312,-150.0,0.00031022,7]
[332626731,1721374264323,-150.0,0.00031102,7]
[332626732,1721374264332,-194.451237,0.0003112,2]
[332626733,1721374264345,-268.65146992,0.00031132,7]
[332626734,1721374264355,-150.0,0.00031173,7]
[332626735,1721374264365,-150.0,0.00031173,7]
[332626736,1721374264375,-235.0,0.0003118,2]
[332626737,1721374264384,-208.0,0.0003118,30]
[332626738,1721374264395,-150.29,0.00031191,2]
[332626739,1721374264405,-20386.52,0.000312,14]
[332626740,1721374264415,-214.0,0.000312,30]
[332626741,1721374264425,-5203.17774725,0.0003121,2]
[332626742,1721374264435,-150.0,0.00031224,7]
[332626743,1721374264446,-268.65146992,0.00031297,7]
[332626744,1721374264456,-150.0,0.00031317,7]
[332626745,1721374264466,-150.28115843,0.00031317,2]
[332626746,1721374264475,-1200.0,0.00031368,2]
[332626747,1721374264485,-194.52828758,0.00031391,7]
[332626748,1721374264495,-48189.39071327,0.000314,30]
[332626749,1721374264505,-150.0,0.00031406,7]
[332626750,1721374264515,-150.0,0.00031426,7]
[332626751,1721374264525,-150.0,0.00031446,7]
[332626752,1721374264535,-152.38095237,0.00031452,7]
[332626753,1721374264545,-268.65146992,0.00031462,7]
[332626754,1721374264555,-157.071907,0.00031498,117]
[332626755,1721374264564,-157.071907,0.00031498,116]
[332626756,1721374264574,-157.071907,0.00031498,115]
[332626757,1721374264584,-157.071907,0.00031498,114]
[332626758,1721374264599,-157.071907,0.00031498,112]
[332626759,1721374264608,-157.071907,0.00031498,111]
[332626760,1721374264618,-157.071907,0.00031498,110]
[332626761,1721374264627,-157.071907,0.00031498,109]
[332626762,1721374264640,-157.071907,0.00031498,108]
[332626763,1721374264649,-157.071907,0.00031498,107]
[332626764,1721374264658,-157.071907,0.00031498,106]
[332626765,1721374264667,-157.071907,0.00031498,105]
[332626766,1721374264676,-3000.0,0.000315,60]
[332626767,1721374264686,-4094.02,0.000315,2]
[332626768,1721374264696,-194.451237,0.00031504,2]
[332626769,1721374264705,-442.98532284,0.00031505,7]
[332626770,1721374264714,-4300.0,0.00031506,10]
[332626771,1721374264724,-4000.0,0.00031506,10]
[332626772,1721374264734,-500.0,0.00031506,10]
[332626773,1721374264744,-839.44,0.0003153,2]
[332626774,1721374264753,-837.82,0.0003153,2]
[332626775,1721374264763,-1300.77,0.0003153,2]
[332626776,1721374264772,-283.50715634,0.00031531,7]
[332626777,1721374264782,-150.0,0.00031532,7]
[332626778,1721374264791,-283.50715634,0.00031571,7]
[332626779,1721374264801,-194.52828758,0.0003159,7]
[332626780,1721374264810,-11759.03,0.000316,2]
[332626781,1721374264820,-171.62612625,0.00031602,7]
[332626782,1721374264829,-268.65146992,0.00031627,7]
[332626783,1721374264840,-150.0,0.00031627,7]
[332626784,1721374264849,-150.0,0.00031627,7]
[332626785,1721374264859,-4648.9,0.00031636,2]
[332626786,1721374264868,-151.24439154,0.00031665,7]
[332626787,1721374264878,-150.0,0.00031718,7]
[332626788,1721374264887,-194.52828758,0.00031719,7]
[332626789,1721374264897,-150.28115843,0.00031722,2]
[332626790,1721374264907,-150.0,0.00031747,7]
[332626791,1721374264916,-157.65036385,0.00031791,7]
[332626792,1721374264925,-268.65146992,0.00031792,7]
[332626793,1721374264934,-150.0,0.00031805,7]
[332626794,1721374264943,-150.0,0.00031829,7]
[332626795,1721374264952,-155.0,0.00031885,4]
[332626796,1721374264962,-155.0,0.00031885,4]
[332626797,1721374264971,-194.451237,0.00031889,2]
[332626798,1721374264981,-152.28968641,0.00031898,7]
[332626799,1721374264990,-268.65146992,0.00031958,7]
[332626800,1721374265000,-350.0,0.00031987,21]
[332626801,1721374265009,-194.52828758,0.0003199,7]
[332626802,1721374265018,-150.0,0.00031991,7]
[332626803,1721374265027,-34000.0,0.00032,10]
[332626804,1721374265038,-48665.79209168,0.00032,2]
[332626805,1721374265049,-4199.7611891,0.00032,120]
[332626806,1721374265058,-1150.0,0.00032,70]
[332626807,1721374265068,-20386.52,0.00032,14]
[332626808,1721374265078,-151.0,0.00032,7]
[332626809,1721374265091,-310.109553,0.00032,7]
[332626810,1721374265102,-310.109553,0.00032,7]
[332626811,1721374265113,-151.0,0.00032,7]
[332626812,1721374265124,-151.0,0.00032,7]
[332626813,1721374265133,-151.0,0.00032,7]
[332626814,1721374265142,-260.573896,0.00032,7]
[332626815,1721374265152,-260.573896,0.00032,7]
[332626816,1721374265163,-151.0,0.00032,7]
[332626817,1721374265172,-151.0,0.00032,7]
[332626818,1721374265183,-334.156083,0.00032,7]
[332626819,1721374265195,-438.217861,0.00032,7]
[332626820,1721374265204,-235.0,0.0003203,2]
[332626821,1721374265214,-208.0,0.0003203,30]
[332626822,1721374265224,-150.0,0.00032031,7]
[332626823,1721374265235,-150.29,0.00032034,2]
[332626824,1721374265244,-214.0,0.0003205,30]
[332626825,1721374265255,-166.66666668,0.00032052,7]
[332626826,1721374265265,-1000.0,0.00032054,10]
[332626827,1721374265276,-800.0,0.00032054,10]
[332626828,1721374265287,-171.62612625,0.00032065,7]
[332626829,1721374265296,-162.11470473,0.00032078,7]
[332626830,1721374265306,-152.28968641,0.00032122,7]
[332626831,1721374265316,-268.65146992,0.00032123,7]
[332626832,1721374265326,-150.28115843,0.00032128,2]
[332626833,1721374265336,-150.0,0.00032203,7]
[332626834,1721374265346,-150.0,0.00032233,7]
[332626835,1721374265355,-166.66666668,0.00032238,7]
[332626836,1721374265365,-150.0,0.00032263,7]
[332626837,1721374265374,-194.451237,0.00032273,2]
[332626838,1721374265384,-268.65146992,0.00032288,7]
[332626839,1721374265394,-155.44710161,0.00032317,7]
[332626840,1721374265404,-283.50715634,0.00032336,7]
[332626841,1721374265414,-150.0,0.00032435,7]
[332626842,1721374265424,-150.0,0.00032453,2]
[332626843,1721374265433,-150.0,0.00032453,2]
[332626844,1721374265444,-150.0,0.00032453,2]
[332626845,1721374265453,-150.0,0.00032453,2]
[332626846,1721374265462,-150.0,0.00032453,2]
[332626847,1721374265472,-268.65146992,0.00032453,7]
[332626848,1721374265481,-157.65036385,0.00032485,7]
[332626849,1721374265491,-157.071907,0.00032498,118]
[332626850,1721374265502,-157.071907,0.00032498,117]
[332626851,1721374265512,-157.071907,0.00032498,116]
[332626852,1721374265522,-157.071907,0.00032498,115]
[332626853,1721374265532,-157.071907,0.00032498,114]
[332626854,1721374265543,-157.071907,0.00032498,113]
[332626855,1721374265553,-157.071907,0.00032498,112]
[332626856,1721374265563,-157.071907,0.00032498,111]
[332626857,1721374265573,-157.071907,0.00032498,110]
[332626858,1721374265583,-157.071907,0.00032498,109]
[332626859,1721374265594,-157.071907,0.00032498,108]
[332626860,1721374265604,-157.071907,0.00032498,107]
[332626861,1721374265613,-157.071907,0.00032498,106]
[332626862,1721374265623,-4094.02,0.000325,2]
[332626863,1721374265632,-150.28115843,0.00032533,2]
[332626864,1721374265642,-150.0,0.00032536,7]
[332626865,1721374265651,-150.0,0.00032536,7]
[332626866,1721374265661,-150.0,0.00032536,7]
[332626867,1721374265671,-150.0,0.00032602,7]
[332626868,1721374265682,-4300.0,0.00032602,10]
[332626869,1721374265693,-4000.0,0.00032602,10]
[332626870,1721374265703,-500.0,0.00032602,10]
[332626871,1721374265713,-268.65146992,0.00032618,7]
[332626872,1721374265723,-150.0,0.00032636,7]
[332626873,1721374265733,-2613.07780332,0.00032647,9]
[332626874,1721374265743,-787.68,0.00032667,2]
[332626875,1721374265755,-321.21245581,0.00032776,2]
[332626876,1721374265765,-268.65146992,0.00032783,7]
[332626877,1721374265775,-150.0,0.0003279,7]
[332626878,1721374265784,-2000.0,0.000328,9]
[332626879,1721374265793,-1393.0,0.000328,21]
[332626880,1721374265803,-150.0,0.00032808,7]
[332626881,1721374265812,-150.0,0.00032838,7]
[332626882,1721374265822,-235.0,0.0003287,2]
[332626883,1721374265831,-208.0,0.0003287,30]
[332626884,1721374265841,-38388.59435759,0.00032874,50]
[332626885,1721374265850,-500.0,0.00032876,14]
[332626886,1721374265859,-500.0,0.00032876,14]
[332626887,1721374265869,-1000.0,0.00032876,30]
[332626888,1721374265880,-1000.0,0.00032876,30]
[332626889,1721374265890,-1000.0,0.00032876,30]
[332626890,1721374265901,-1000.0,0.00032876,30]
[332626891,1721374265912,-1000.0,0.00032876,30]
[332626892,1721374265921,-1000.0,0.00032876,30]
[332626893,1721374265932,-1000.0,0.00032876,30]
[332626894,1721374265943,-1000.0,0.00032876,30]
[332626895,1721374265955,-1000.0,0.00032876,30]
[332626896,1721374265966,-1000.0,0.00032876,30]
[332626897,1721374265975,-1000.0,0.00032876,30]
[332626898,1721374265984,-1000.0,0.00032876,30]